bitfinex-derivatives/quotes_BTCF0:USTF0_20210705
["timestamp","ask_amount","ask_price","bid_price","bid_amount"]
[1625473111913,9.53591337,34195.0,34194.0,2.54370682]
[1625473112361,11.09322834,34195.0,34194.0,1.50986198]
[1625473113063,11.09322834,34195.0,34194.0,0.90814302]
[1625473113666,11.09322834,34195.0,34194.0,0.82188659]
[1625473114115,11.09322834,34195.0,34194.0,0.56312527]
[1625473114417,11.09322834,34195.0,34194.0,0.55877729]
[1625473114614,11.17962834,34195.0,34194.0,0.55877729]
[1625473114714,11.17962834,34195.0,34194.0,0.56312697]
[1625473115216,11.17962834,34195.0,34194.0,0.55877729]
[1625473115569,11.09322834,34195.0,34194.0,0.55877729]
[1625473115669,11.09322834,34195.0,34194.0,0.53867729]
[1625473116421,11.09322834,34195.0,34194.0,0.2799]
[1625473119381,12.82404423,34195.0,34194.0,0.2799]
[1625473122190,11.09322834,34195.0,34194.0,0.2799]
[1625473124143,12.82314749,34195.0,34194.0,0.2799]
[1625473126002,11.09322834,34195.0,34194.0,0.2799]
[1625473126451,12.82292078,34195.0,34194.0,0.2799]
[1625473126559,13.10429078,34195.0,34194.0,0.2799]
[1625473129657,11.37459834,34195.0,34194.0,0.2799]
[1625473130159,13.10370547,34195.0,34194.0,0.2799]
[1625473130711,11.37459834,34195.0,34194.0,0.2799]
[1625473136017,13.1039061,34195.0,34194.0,0.2799]
[1625473138389,0.059,34194.0,34190.0,0.08618776]
[1625473138496,0.118,34194.0,34190.0,0.08618776]
[1625473138689,0.118,34194.0,34190.0,0.06338776]
[1625473138776,0.01461309,34193.0,34189.0,0.51968306]
[1625473138875,0.13261309,34193.0,34189.0,0.51968306]
[1625473139076,0.16729852,34193.0,34189.0,0.47828306]
[1625473139193,6.39963639,34191.0,34187.0,0.52116003]
[1625473139276,6.51763639,34191.0,34187.0,0.52116003]
[1625473139578,0.01461406,34190.0,34187.0,0.52116003]
[1625473139680,6.39873922,34188.0,34187.0,0.004]
[1625473139777,6.63134922,34188.0,34187.0,0.004]
[1625473139886,6.74934922,34188.0,34187.0,0.004]
[1625473140078,6.76396328,34188.0,34187.0,0.004]
[1625473140277,6.76396328,34188.0,34184.0,0.17268159]
[1625473140278,7.4836896,34188.0,34184.0,0.17268159]
[1625473140377,3.8583,34185.0,34184.0,0.17268159]
[1625473140478,3.9763,34185.0,34184.0,0.17268159]
[1625473140678,6.41210507,34185.0,34184.0,0.1770327]
[1625473140778,8.14162622,34185.0,34184.0,0.52204522]
[1625473141178,8.14162622,34185.0,34184.0,0.51769411]
[1625473141829,8.14162622,34185.0,34184.0,0.52204521]
[1625473142284,8.38220166,34185.0,34184.0,0.52204521]
[1625473142392,8.38220166,34185.0,34184.0,0.34269411]
[1625473142488,8.38220166,34185.0,34184.0,0.29919411]
[1625473142588,8.38220166,34185.0,34184.0,0.27469411]
[1625473142816,8.38220166,34185.0,34184.0,0.26719411]
[1625473142914,9.93863915,34185.0,34184.0,0.1146987]
[1625473143000,9.93863915,34185.0,34181.0,1.03559219]
[1625473143097,9.93863915,34185.0,34181.0,0.97345177]
[1625473143180,9.93863915,34185.0,34181.0,0.91575177]
[1625473143305,0.01456634,34184.0,34181.0,0.80835177]
[1625473143381,0.07356634,34184.0,34181.0,0.60125177]
[1625473143482,0.13256634,34184.0,34181.0,0.59305177]
[1625473143785,0.0145665,34183.0,34181.0,0.59305177]
[1625473143882,0.0735665,34183.0,34181.0,0.59305177]
[1625473144086,0.1325665,34183.0,34181.0,0.59305177]
[1625473144284,0.48115088,34182.0,34181.0,0.59305177]
[1625473144384,0.55471762,34182.0,34181.0,0.59305177]
[1625473144485,4.76467173,34182.0,34180.0,0.9982]
[1625473144588,4.56467173,34182.0,34180.0,0.9982]
[1625473144883,0.01456653,34181.0,34180.0,0.9982]
[1625473144984,0.07356653,34181.0,34180.0,0.9982]
[1625473145084,0.13256653,34181.0,34180.0,0.9982]
[1625473145184,4.28073033,34181.0,34180.0,1.0025661]
[1625473145634,2.72519051,34181.0,34180.0,1.0025661]
[1625473147037,1.34246924,34181.0,34180.0,1.0025661]
[1625473147838,2.72479567,34181.0,34180.0,1.0025661]
[1625473149445,2.96760567,34181.0,34180.0,1.0025661]
[1625473149696,2.96760567,34181.0,34180.0,0.8115661]
[1625473150198,2.96760567,34181.0,34180.0,0.8072]
[1625473150397,3.68933199,34181.0,34180.0,0.8072]
[1625473151001,3.68933199,34181.0,34180.0,1.0072]
[1625473153907,3.67476546,34181.0,34180.0,1.0072]
[1625473154506,3.6892839,34181.0,34180.0,1.0072]
[1625473155257,3.67476546,34181.0,34180.0,1.0072]
[1625473155507,3.68928396,34181.0,34180.0,1.0072]
[1625473155757,3.67476546,34181.0,34180.0,1.0072]
[1625473156308,3.68928403,34181.0,34180.0,1.0072]
[1625473157011,3.68928403,34181.0,34180.0,0.2]
[1625473158512,3.68928403,34181.0,34180.0,0.1657]
[1625473161821,3.68928403,34181.0,34180.0,0.1218]
[1625473161921,3.68928403,34181.0,34180.0,0.0165]
[1625473162022,3.68928403,34181.0,34174.0,0.24257544]
[1625473162473,0.24057544,34175.0,34174.0,0.24257544]
[1625473162576,0.29957544,34175.0,34174.0,0.24257544]
[1625473162675,0.35857544,34175.0,34174.0,0.24257544]
[1625473162776,0.35857544,34175.0,34174.0,0.246954]
[1625473165433,0.35857544,34175.0,34174.0,0.00637856]
[1625473165735,0.37311077,34175.0,34174.0,0.00637856]
[1625473165936,1.57655949,34175.0,34174.0,0.00637856]
[1625473166035,1.57655949,34175.0,34174.0,0.002]
[1625473166437,2.9518994,34175.0,34174.0,0.002]
[1625473166539,3.19247484,34175.0,34174.0,0.002]
[1625473167288,3.19247484,34175.0,34171.0,0.24057544]
[1625473167588,3.17793951,34175.0,34172.0,0.00439108]
[1625473167939,1.20344927,34174.0,34172.0,0.00439108]
[1625473168039,1.32144927,34174.0,34172.0,0.00439108]
[1625473168288,1.26244927,34174.0,34172.0,0.00439108]
[1625473168393,0.059,34174.0,34172.0,0.00439108]
[1625473168490,4.9527,34173.0,34172.0,0.00439108]
[1625473168590,5.25227544,34173.0,34172.0,0.00439108]
[1625473168789,5.31127544,34173.0,34172.0,0.00439108]
[1625473170447,5.31127544,34173.0,34172.0,1.21248701]
[1625473173705,5.31127544,34173.0,34172.0,2.2483302]
[1625473174908,0.35857544,34173.0,34172.0,2.2483302]
[1625473175108,0.29957544,34173.0,34172.0,2.2483302]
[1625473175259,0.35857544,34173.0,34172.0,2.2483302]
[1625473175359,0.29957544,34173.0,34172.0,2.2483302]
[1625473180273,0.35857544,34173.0,34172.0,2.2483302]
[1625473180383,0.29957544,34173.0,34172.0,2.2483302]
[1625473181373,0.24057544,34173.0,34172.0,2.2483302]
[1625473181574,0.24057544,34173.0,34172.0,3.62991011]
[1625473182681,0.24057544,34173.0,34172.0,3.68891011]
[1625473183430,0.24057544,34173.0,34172.0,5.24266607]
[1625473186838,0.24057544,34175.0,34172.0,5.24266607]
[1625473187288,0.006,34177.0,34174.0,5.17442862]
[1625473187400,0.006,34177.0,34174.0,9.91672862]
[1625473187488,0.065,34177.0,34174.0,9.97572862]
[1625473187589,0.006,34177.0,34175.0,0.00440573]
[1625473187688,0.006,34177.0,34175.0,0.36869573]
[1625473187889,0.006,34177.0,34175.0,0.42769573]
[1625473188042,0.006,34177.0,34176.0,5.1713958]
[1625473188139,0.006,34177.0,34176.0,5.23480129]
[1625473188243,0.006,34177.0,34176.0,5.29380129]
[1625473188590,0.006,34177.0,34176.0,5.23480129]
[1625473188690,0.006,34177.0,34176.0,5.71595217]
[1625473190994,0.006,34177.0,34176.0,5.77495217]
[1625473192548,0.006,34177.0,34176.0,7.49525922]
[1625473193352,0.006,34177.0,34176.0,7.43625922]
[1625473193450,0.01,34181.0,34176.0,7.43625922]
[1625473193751,0.01,34181.0,34177.0,0.00440517]
[1625473193851,0.01,34181.0,34177.0,0.06340517]
[1625473194052,0.01,34181.0,34180.0,5.15197947]
[1625473194156,0.01,34181.0,34180.0,5.21097947]
[1625473194259,0.008,34181.0,34180.0,5.20497947]
[1625473194512,0.008,34181.0,34180.0,5.20938487]
[1625473194707,0.008,34181.0,34180.0,5.44996031]
[1625473197316,0.006,34183.0,34180.0,5.44996031]
[1625473197565,0.006,34183.0,34182.0,2.57286114]
[1625473197665,0.006,34183.0,34182.0,2.63186114]
[1625473198019,0.006,34183.0,34182.0,2.63626808]
[1625473199268,0.006,34183.0,34182.0,2.57726808]
[1625473199870,0.006,34183.0,34182.0,2.63626808]
[1625473200521,0.006,34183.0,34182.0,2.63186114]
[1625473200821,0.006,34183.0,34182.0,2.63626919]
[1625473200925,0.006,34183.0,34182.0,3.62445526]
[1625473201521,0.006,34183.0,34182.0,3.56545526]
[1625473201621,0.006,34183.0,34182.0,3.62445526]
[1625473201821,0.006,34183.0,34182.0,3.56545526]
[1625473201922,0.006,34183.0,34182.0,3.62445526]
[1625473206286,0.24057544,34185.0,34182.0,3.62445526]
[1625473206584,0.24057544,34185.0,34183.0,0.00440819]
[1625473206734,0.24057544,34185.0,34184.0,0.24057544]
[1625473206934,0.24057544,34185.0,34184.0,2.12529262]
[1625473207084,0.24057544,34185.0,34184.0,2.12970081]
[1625473213047,0.24057544,34185.0,34184.0,2.18870081]
[1625473214357,0.24057544,34185.0,34184.0,3.55831608]
[1625473214552,0.24057544,34188.0,34184.0,3.55831608]
[1625473214752,0.006,34189.0,34184.0,3.55831608]
[1625473214869,0.006,34189.0,34187.0,0.24057544]
[1625473215051,0.006,34189.0,34187.0,0.35857544]
[1625473215156,0.006,34189.0,34187.0,2.24130549]
[1625473215257,0.006,34189.0,34188.0,0.00440747]
[1625473215371,0.006,34189.0,34188.0,0.12240747]
[1625473215679,0.006,34189.0,34188.0,2.00392504]
[1625473216053,0.006,34189.0,34188.0,3.37007884]
[1625473216401,0.0001,34191.0,34188.0,3.37007884]
[1625473216502,0.0001,34191.0,34188.0,4.90646172]
[1625473216802,0.0001,34191.0,34190.0,0.48115088]
[1625473216904,0.0001,34191.0,34190.0,5.70774716]
[1625473217119,0.0001,34191.0,34190.0,5.71215326]
[1625473217855,0.0001,34191.0,34190.0,5.72081988]
[1625473218056,0.68872157,34206.0,34190.0,5.72081988]
[1625473218156,0.68872157,34206.0,34190.0,5.71215326]
[1625473218357,0.68871675,34207.0,34190.0,7.41321396]
[1625473218456,0.68871675,34207.0,34191.0,0.00440695]
[1625473218557,0.68871675,34207.0,34191.0,0.12240695]
[1625473218815,0.68869388,34208.0,34206.0,0.72172632]
[1625473218910,0.68869388,34208.0,34206.0,1.06251632]
[1625473219112,0.68869388,34208.0,34207.0,5.1194]
[1625473219212,0.68869388,34208.0,34207.0,5.1784]
[1625473219512,0.68869388,34208.0,34207.0,0.059]
[1625473220013,0.92859964,34209.0,34207.0,0.059]
[1625473220414,0.24057544,34209.0,34207.0,0.059]
[1625473220613,0.29957544,34209.0,34207.0,0.059]
[1625473220714,0.35857544,34209.0,34206.0,1.00351632]
[1625473220915,0.68805445,34208.0,34206.0,1.00351632]
[1625473221016,0.80605445,34208.0,34206.0,1.00351632]
[1625473221113,0.74705445,34208.0,34206.0,1.00351632]
[1625473221716,0.68804748,34207.0,34206.0,1.00351632]
[1625473222117,0.68762808,34209.0,34206.0,1.00351632]
[1625473222215,0.74662808,34209.0,34206.0,1.10351632]
[1625473222617,0.74662808,34209.0,34206.0,1.00351632]
[1625473223216,0.74662808,34209.0,34208.0,0.1]
[1625473223418,0.059,34209.0,34208.0,0.1]
[1625473223917,5.2853,34209.0,34208.0,0.1]
[1625473224018,0.74634182,34209.0,34208.0,0.1]
[1625473224669,1.77728063,34209.0,34208.0,0.1]
[1625473225169,1.83628063,34209.0,34208.0,0.1]
[1625473225521,4.41377835,34209.0,34208.0,0.1]
[1625473225872,3.03912435,34209.0,34208.0,0.1]
[1625473226674,1.83628063,34209.0,34208.0,0.1]
[1625473226875,1.83628063,34209.0,34208.0,0.34057544]
[1625473228275,6.31808063,34209.0,34208.0,0.34057544]
[1625473228376,6.62885063,34209.0,34208.0,0.34057544]
[1625473228878,6.62885063,34209.0,34208.0,0.1]
[1625473229228,9.20585873,34209.0,34208.0,0.1]
[1625473231530,4.72405873,34209.0,34208.0,0.1]
[1625473231632,4.41328873,34209.0,34208.0,0.1]
[1625473232184,1.83628063,34209.0,34208.0,0.1]
[1625473232884,1.83628063,34209.0,34208.0,0.34057544]
[1625473233183,2.35184019,34209.0,34208.0,0.34057544]
[1625473233283,7.33164019,34209.0,34208.0,0.34057544]
[1625473234289,2.35184019,34209.0,34208.0,0.34057544]
[1625473235341,3.55468508,34209.0,34208.0,0.34057544]
[1625473235941,2.35184019,34209.0,34208.0,0.34057544]
[1625473236492,3.55460276,34209.0,34208.0,0.34057544]
[1625473238444,2.86726094,34209.0,34208.0,0.34057544]
[1625473238595,7.06641013,34209.0,34208.0,0.34057544]
[1625473239550,8.44186993,34209.0,34208.0,0.34057544]
[1625473242000,8.45628276,34209.0,34208.0,0.34057544]
[1625473242902,8.45628276,34209.0,34208.0,0.54057544]
[1625473247010,8.54298276,34209.0,34208.0,0.54057544]
[1625473247111,8.45628276,34209.0,34208.0,0.54057544]
[1625473250419,8.45628276,34209.0,34208.0,0.54498312]
[1625473259336,4.94468276,34209.0,34208.0,0.54498312]
[1625473259989,9.70268276,34209.0,34208.0,0.54498312]
[1625473260088,4.94468276,34209.0,34208.0,0.54498312]
[1625473262443,4.94468276,34209.0,34208.0,0.30440768]
[1625473262444,5.03148276,34209.0,34208.0,0.30440768]
[1625473262646,5.06615128,34209.0,34208.0,0.30440768]
[1625473262897,5.06615128,34209.0,34208.0,0.3]
[1625473263347,6.61787948,34209.0,34208.0,0.3]
[1625473265253,6.61787948,34209.0,34208.0,0.0001]
[1625473266708,6.58321096,34209.0,34208.0,0.0001]
[1625473266910,6.61788159,34209.0,34208.0,0.0001]
[1625473267615,8.34347732,34209.0,34208.0,0.0001]
[1625473268514,8.30880669,34209.0,34208.0,0.0001]
[1625473270117,8.34347753,34209.0,34208.0,0.0001]
[1625473270672,8.30880669,34209.0,34208.0,0.0001]
[1625473271573,12.36750669,34209.0,34208.0,0.0001]
[1625473276485,12.40218007,34209.0,34208.0,0.0001]
[1625473276733,12.90218007,34209.0,34208.0,0.0001]
[1625473279389,12.90218007,34209.0,34207.0,0.0019]
[1625473279694,0.01441691,34208.0,34207.0,0.0019]
[1625473279789,8.25927039,34208.0,34207.0,0.0019]
[1625473281244,8.49984583,34208.0,34207.0,0.0019]
[1625473281995,8.99984583,34208.0,34203.0,0.0001]
[1625473282098,9.03451994,34208.0,34186.0,1.78681502]
[1625473282198,9.03451994,34208.0,34196.0,1.01971733]
[1625473282396,0.04909534,34207.0,34196.0,1.01971733]
[1625473282495,0.45999534,34207.0,34196.0,0.94781733]
[1625473282596,0.45999534,34207.0,34196.0,0.93541733]
[1625473282597,4.5938,34197.0,34196.0,0.93541733]
[1625473282763,5.40507,34197.0,34191.0,1.33683352]
[1625473282845,5.52307,34197.0,34191.0,1.33683352]
[1625473282946,5.53748979,34197.0,34191.0,1.33313352]
[1625473283046,5.53748979,34197.0,34191.0,1.32533352]
[1625473283149,5.53748979,34197.0,34179.0,1.72951747]
[1625473283150,0.01442017,34196.0,34179.0,1.72951747]
[1625473283246,0.24057544,34181.0,34180.0,0.24057544]
[1625473283347,0.58512544,34181.0,34180.0,0.24057544]
[1625473283446,0.58512544,34181.0,34180.0,0.24498506]
[1625473283598,0.34455,34181.0,34180.0,0.00440962]
[1625473283796,4.30265,34181.0,34180.0,0.00440962]
[1625473284000,4.30265,34181.0,34177.0,0.00441003]
[1625473284199,4.30265,34181.0,34180.0,0.00441007]
[1625473284500,4.30265,34181.0,34177.0,0.00441009]
[1625473285149,4.10265,34181.0,34177.0,0.00441009]
[1625473285248,4.34322544,34181.0,34180.0,0.24057544]
[1625473285550,4.34322544,34181.0,34180.0,0.2449858]
[1625473286604,4.34322544,34181.0,34180.0,0.24057544]
[1625473287004,0.38512544,34181.0,34180.0,0.24057544]
[1625473288558,0.29957544,34181.0,34180.0,0.57692544]
[1625473289259,0.29957544,34181.0,34180.0,0.58133571]
[1625473289811,0.24057544,34181.0,34180.0,0.58133571]
[1625473291112,0.24057544,34181.0,34180.0,0.78133571]
[1625473292015,0.24057544,34181.0,34180.0,0.44498571]
[1625473292215,0.29957544,34181.0,34180.0,0.44498571]
[1625473292315,0.24057544,34181.0,34180.0,0.44057544]
[1625473293469,5.30497544,34181.0,34180.0,0.44057544]
[1625473293569,0.24057544,34181.0,34180.0,0.44057544]
[1625473294122,0.24057544,34181.0,34180.0,0.44498551]
[1625473294925,0.24057544,34181.0,34180.0,0.44057544]
[1625473295727,0.24057544,34181.0,34180.0,0.44498542]
[1625473296277,0.24057544,34181.0,34180.0,0.44057544]
[1625473296777,0.29957544,34181.0,34180.0,0.44057544]
[1625473296877,0.24057544,34181.0,34180.0,0.44057544]
[1625473297731,0.29957544,34181.0,34180.0,0.44057544]
[1625473298085,4.24357544,34181.0,34180.0,0.44057544]
[1625473299488,0.29957544,34181.0,34180.0,0.44057544]
[1625473300941,0.47072121,34181.0,34180.0,0.61280322]
[1625473301348,0.52972121,34181.0,34180.0,0.61280322]
[1625473301454,0.35857544,34181.0,34180.0,0.44057544]
[1625473306853,0.52947671,34181.0,34180.0,0.44057544]
[1625473307958,0.35857544,34181.0,34180.0,0.44057544]
[1625473308409,0.52945962,34181.0,34180.0,0.44057544]
[1625473308711,0.35857544,34181.0,34180.0,0.44057544]
[1625473310665,0.35857544,34181.0,34180.0,0.44498392]
[1625473312473,1.38394884,34181.0,34180.0,0.44498392]
[1625473313322,1.39837699,34181.0,34180.0,0.44057544]
[1625473313825,1.39837699,34181.0,34180.0,0.44498405]
[1625473315424,1.38394884,34181.0,34180.0,0.44498405]
[1625473316882,1.38394884,34181.0,34180.0,0.44057544]
[1625473316883,1.39837712,34181.0,34180.0,0.44057544]
[1625473317234,2.59570025,34181.0,34180.0,0.44057544]
[1625473319942,3.96477327,34181.0,34180.0,0.44057544]
[1625473320144,3.96477327,34181.0,34180.0,0.39977544]
[1625473320444,2.59570025,34181.0,34180.0,0.39977544]
[1625473320899,3.96467206,34181.0,34180.0,0.39977544]
[1625473321701,3.96467206,34181.0,34180.0,0.35637544]
[1625473321900,2.59570025,34181.0,34180.0,0.35637544]
[1625473322502,2.59570025,34181.0,34180.0,0.32317544]
[1625473322803,3.96423083,34181.0,34180.0,0.32317544]
[1625473323554,3.96423083,34181.0,34180.0,0.2]
[1625473323952,0.37300372,34181.0,34180.0,0.2]
[1625473324406,3.96450083,34181.0,34180.0,0.2]
[1625473325508,4.20507627,34181.0,34180.0,0.2]
[1625473325758,4.20507627,34181.0,34180.0,0.1601]
[1625473325860,4.47634627,34181.0,34180.0,0.1601]
[1625473326611,6.01416613,34181.0,34180.0,0.1601]
[1625473326863,6.01416613,34181.0,34180.0,0.1203]
[1625473328264,4.47634627,34181.0,34180.0,0.1203]
[1625473329618,4.47634627,34181.0,34180.0,0.0803]
[1625473331071,6.01006698,34181.0,34180.0,0.0803]
[1625473334728,7.71434578,34181.0,34180.0,0.0803]
[1625473335229,6.01006698,34181.0,34180.0,0.0803]
[1625473336341,7.71440277,34181.0,34180.0,0.0803]
[1625473336992,6.01006698,34181.0,34180.0,0.0803]
[1625473337091,6.51006698,34181.0,34180.0,0.0803]
[1625473337492,6.45106698,34181.0,34180.0,0.0213]
[1625473338847,8.15568165,34181.0,34180.0,0.0213]
[1625473340098,7.65568165,34181.0,34180.0,0.0213]
[1625473340650,7.71468165,34181.0,34180.0,0.0213]
[1625473342555,8.39715477,34181.0,34180.0,0.0213]
[1625473342766,8.33815477,34181.0,34180.0,0.0213]
[1625473342859,6.6335401,34181.0,34180.0,0.0213]
[1625473343658,6.6925401,34181.0,34180.0,0.0213]
[1625473343958,6.6335401,34181.0,34180.0,0.0213]
[1625473344063,6.6925401,34181.0,34180.0,0.0213]
[1625473345112,6.6335401,34181.0,34180.0,0.0213]
[1625473345561,6.6925401,34181.0,34180.0,0.0213]
[1625473346462,6.6335401,34181.0,34180.0,0.0213]
[1625473346662,6.6335401,34181.0,34180.0,0.24442]
[1625473349468,6.3622701,34181.0,34180.0,0.24442]
[1625473349568,6.3622701,34181.0,34180.0,0.24884205]
[1625473349670,4.82854939,34181.0,34180.0,0.24884205]
[1625473350321,4.75512111,34181.0,34180.0,0.24884205]
[1625473351337,3.38695616,34181.0,34180.0,0.50780634]
[1625473352029,3.38695616,34181.0,34180.0,0.50338429]
[1625473352125,3.38695616,34181.0,34180.0,0.28026429]
[1625473352225,3.44595616,34181.0,34180.0,0.28026429]
[1625473352325,3.44595616,34181.0,34180.0,0.0213]
[1625473352326,4.81535344,34181.0,34180.0,0.0213]
[1625473352425,4.87435344,34181.0,34180.0,0.0213]
[1625473352527,4.88874014,34181.0,34180.0,0.0213]
[1625473353528,6.42834442,34181.0,34180.0,0.0213]
[1625473356141,8.13565476,34181.0,34180.0,0.0213]
[1625473360654,8.13565476,34181.0,34172.0,0.0033]
[1625473361056,5.80822294,34177.0,34172.0,0.0033]
[1625473361156,6.13611294,34177.0,34172.0,0.0033]
[1625473361358,0.0143836,34176.0,34172.0,0.0033]
[1625473361455,0.0733836,34176.0,34172.0,0.0033]
[1625473361556,0.1323836,34176.0,34172.0,0.0033]
[1625473361754,0.48115088,34173.0,34172.0,0.0033]
[1625473361854,0.59915088,34173.0,34172.0,0.0033]
[1625473362105,0.61353431,34173.0,34172.0,0.0033]
[1625473362356,6.42139952,34173.0,34172.0,0.0033]
[1625473362807,2.15085514,34173.0,34172.0,0.0033]
[1625473363307,2.14885514,34173.0,34171.0,0.24057544]
[1625473363506,2.14885514,34173.0,34171.0,0.21057544]
[1625473363707,2.13447171,34173.0,34171.0,0.21057544]
[1625473364061,4.27048901,34172.0,34171.0,0.21057544]
[1625473364260,4.38848901,34172.0,34171.0,0.21057544]
[1625473364360,4.47488901,34172.0,34171.0,0.21057544]
[1625473365316,4.47488901,34172.0,34171.0,0.17077544]
[1625473365512,4.48927255,34172.0,34170.0,0.25931413]
[1625473365713,4.48927255,34172.0,34170.0,0.08643953]
[1625473365812,4.47488901,34172.0,34170.0,0.08643953]
[1625473366413,4.47488901,34172.0,34171.0,0.00449868]
[1625473366664,4.47488901,34172.0,34170.0,0.08643953]
[1625473366865,4.47488901,34172.0,34169.0,0.1728707]
[1625473366866,4.26996179,34171.0,34169.0,0.25931817]
[1625473366963,4.38796179,34171.0,34169.0,0.25931817]
[1625473367466,4.26792726,34170.0,34168.0,0.25935007]
[1625473367580,4.55462726,34170.0,34168.0,0.25935007]
[1625473367664,4.61362726,34170.0,34168.0,0.25935007]
[1625473367765,0.24057544,34169.0,34168.0,0.25935007]
[1625473367866,0.29957544,34169.0,34168.0,0.25935007]
[1625473367967,0.35857544,34169.0,34168.0,0.25935007]
[1625473368065,0.35857544,34169.0,34168.0,0.00449894]
[1625473368066,4.62529421,34169.0,34168.0,0.00449894]
[1625473368967,6.16169161,34169.0,34168.0,0.00449894]
[1625473369119,6.16169161,34169.0,34167.0,0.002]
[1625473369417,4.26800282,34168.0,34167.0,0.002]
[1625473369517,4.38600282,34168.0,34167.0,0.002]
[1625473369769,4.62657826,34168.0,34167.0,0.002]
[1625473370171,4.62657826,34168.0,34167.0,0.00649931]
[1625473370422,6.16235102,34168.0,34167.0,0.00649931]
[1625473370723,6.16235102,34168.0,34167.0,0.002]
[1625473370922,4.62657826,34168.0,34167.0,0.002]
[1625473371726,4.62657826,34168.0,34166.0,0.05535045]
[1625473371829,0.24057544,34167.0,34166.0,0.05535045]
[1625473371925,0.35857544,34167.0,34165.0,1.06883619]
[1625473372224,0.35857544,34167.0,34166.0,0.002]
[1625473372777,0.44577544,34167.0,34166.0,0.002]
[1625473373183,5.22220472,34167.0,34166.0,0.002]
[1625473379248,5.22220472,34167.0,34165.0,0.9824]
[1625473379751,3.40997808,34166.0,34165.0,0.9824]
[1625473379851,4.83286703,34166.0,34165.0,0.9824]
[1625473379949,4.89186703,34166.0,34165.0,0.9824]
[1625473381806,6.42700305,34166.0,34165.0,0.9824]
[1625473382358,4.89186703,34166.0,34165.0,0.9824]
[1625473383058,4.90624515,34166.0,34165.0,0.9824]
[1625473384414,6.44166358,34166.0,34165.0,0.9824]
[1625473385612,6.44166358,34166.0,34165.0,0.9492]
[1625473387315,6.44166358,34166.0,34165.0,0.916]
[1625473387413,1.66779655,34166.0,34165.0,0.916]
[1625473387516,3.71179592,34166.0,34165.0,0.916]
[1625473387964,3.71179592,34166.0,34165.0,0.8958]
[1625473388066,6.43711747,34166.0,34165.0,0.8879]
[1625473389419,6.43711747,34166.0,34165.0,0.8693]
[1625473389519,6.43711747,34166.0,34165.0,0.7665]
[1625473389669,5.1798,34160.0,34159.0,0.17481405]
[1625473389769,5.56363,34160.0,34159.0,0.17481405]
[1625473389920,6.28535632,34160.0,34159.0,0.17481405]
[1625473390023,6.28535632,34160.0,34159.0,0.1792437]
[1625473390527,9.69279174,34160.0,34159.0,0.1792437]
[1625473391625,9.69279174,34160.0,34159.0,0.14291405]
[1625473391726,9.69279174,34160.0,34158.0,0.17276179]
[1625473391926,9.69279174,34160.0,34159.0,0.00442973]
[1625473392176,6.28535632,34160.0,34159.0,0.00442973]
[1625473392676,6.28535632,34160.0,34158.0,0.17276179]
[1625473392777,9.69218851,34160.0,34158.0,0.17276179]
[1625473393279,3.40582829,34159.0,34156.0,1.20910998]
[1625473393377,3.46482829,34159.0,34156.0,1.20910998]
[1625473393727,3.46482829,34159.0,34157.0,0.00442976]
[1625473393827,1.19189162,34158.0,34157.0,0.00442976]
[1625473393926,1.49146706,34158.0,34157.0,0.00442976]
[1625473394177,3.70509322,34158.0,34157.0,0.00442976]
[1625473394527,2.5132016,34158.0,34157.0,0.00442976]
[1625473395482,3.70480856,34158.0,34157.0,0.00442976]
[1625473395680,3.70480856,34158.0,34157.0,2.976e-05]
[1625473396384,3.70480856,34158.0,34156.0,0.00442465]
[1625473396483,3.70480856,34158.0,34156.0,0.522492]
[1625473396943,3.70480856,34158.0,34157.0,0.00442465]
[1625473397035,0.29957544,34158.0,34157.0,0.00442465]
[1625473397487,2.51281652,34158.0,34157.0,0.00442465]
[1625473397586,2.51281652,34158.0,34156.0,0.52238283]
[1625473397889,2.51281652,34158.0,34157.0,0.00442446]
[1625473397992,1.32100586,34158.0,34157.0,0.00442446]
[1625473398440,2.51284692,34158.0,34157.0,0.00442446]
[1625473402443,2.51284692,34158.0,34157.0,0.34959364]
[1625473404148,1.4914165,34158.0,34157.0,0.34959364]
[1625473406855,1.14963509,34158.0,34157.0,1.21246432]
[1625473407357,0.63882175,34158.0,34157.0,1.21246432]
[1625473407609,0.63882175,34158.0,34157.0,1.47889432]
[1625473407858,0.63882175,34158.0,34157.0,2.51444462]
[1625473410516,0.63882175,34158.0,34157.0,2.71444462]
[1625473411418,0.80922312,34158.0,34157.0,2.71444462]
[1625473411971,0.63943526,34158.0,34157.0,3.92382189]
[1625473412519,1.14915691,34158.0,34157.0,3.92382189]
[1625473412970,0.63943526,34158.0,34157.0,3.92382189]
[1625473413070,0.29957544,34158.0,34157.0,3.92382189]
[1625473413870,0.80968772,34158.0,34157.0,3.92382189]
[1625473414521,0.63976461,34158.0,34157.0,5.30680594]
[1625473414872,0.81009953,34158.0,34157.0,5.30680594]
[1625473415471,5.17549953,34158.0,34157.0,5.30680594]
[1625473415872,0.81009953,34158.0,34157.0,5.30680594]
[1625473416477,6.31414197,34158.0,34157.0,3.92382189]
[1625473416774,2.51124197,34158.0,34157.0,3.92382189]
[1625473417425,7.48544197,34158.0,34157.0,3.92382189]
[1625473418377,2.51124197,34158.0,34157.0,3.92382189]
[1625473418879,6.44534197,34158.0,34157.0,3.92382189]
[1625473419082,6.53404197,34158.0,34157.0,3.92382189]
[1625473419284,2.59994197,34158.0,34157.0,3.92382189]
[1625473419381,2.51124197,34158.0,34157.0,3.92382189]
[1625473420333,3.70237126,34158.0,34157.0,3.92382189]
[1625473420584,8.10987126,34158.0,34157.0,3.92382189]
[1625473420933,3.70237126,34158.0,34157.0,3.92382189]
[1625473422739,8.92677126,34158.0,34157.0,2.71444462]
[1625473422839,8.92677126,34158.0,34157.0,2.44801462]
[1625473423342,10.28664915,34158.0,34157.0,2.44801462]
[1625473423642,5.06224915,34158.0,34157.0,2.44801462]
[1625473425094,5.06224915,34158.0,34157.0,1.41246432]
[1625473425347,9.07674915,34158.0,34157.0,1.41246432]
[1625473425847,9.07674915,34158.0,34157.0,2.45174271]
[1625473427200,9.07674915,34158.0,34157.0,1.41246432]
[1625473427301,9.0909067,34158.0,34157.0,1.41246432]
[1625473427853,9.07674915,34158.0,34157.0,1.41246432]
[1625473430562,9.09090707,34158.0,34157.0,1.41246432]
[1625473432216,10.62127135,34158.0,34157.0,1.41246432]
[1625473432416,10.60711343,34158.0,34157.0,1.41246432]
[1625473432770,9.07674915,34158.0,34157.0,1.41246432]
[1625473433267,9.09090758,34158.0,34157.0,1.41246432]
[1625473433367,10.62106794,34158.0,34157.0,0.72215583]
[1625473433969,10.62106794,34158.0,34157.0,1.06869221]
[1625473435624,10.60690951,34158.0,34157.0,1.06869221]